fUSD/lending_fUSD_20251123
["ID","MTS","AMOUNT","RATE_DAILY","PERIOD"]
[394715000,1763911863812,-500.0,0.0003863,8]
[394715001,1763911863824,-452.77944316,0.0003863,8]
[394715002,1763911863835,-775.73,0.0003863,8]
[394715003,1763911863846,-500.0,0.0003863,8]
[394715004,1763911863856,-500.0,0.0003863,8]
[394715005,1763911863866,-500.0,0.0003863,8]
[394715006,1763911863877,-781.72,0.0003863,8]
[394715007,1763911863888,-500.0,0.0003863,8]
[394715008,1763911863899,-478.23050729,0.0003863,8]
[394715009,1763911863911,-500.0,0.0003863,8]
[394715010,1763911863921,-500.0,0.0003863,8]
[394715011,1763911863932,-500.0,0.0003863,8]
[394715012,1763911863944,-500.0,0.0003863,8]
[394715013,1763911863956,-500.0,0.0003863,8]
[394715014,1763911863967,-500.0,0.0003863,8]
[394715015,1763911863978,-500.0,0.0003863,8]
[394715016,1763911863989,-500.0,0.0003863,8]
[394715017,1763911864000,-580.22,0.0003863,8]
[394715018,1763911864012,-500.0,0.0003863,8]
[394715019,1763911864024,-500.0,0.0003863,8]
[394715020,1763911864034,-500.0,0.0003863,8]
[394715021,1763911864045,-500.0,0.0003863,8]
[394715022,1763911864056,-500.0,0.0003863,8]
[394715023,1763911864067,-500.0,0.0003863,8]
[394715024,1763911864077,-500.0,0.0003863,8]
[394715025,1763911864089,-500.0,0.0003863,8]
[394715026,1763911864100,-500.0,0.0003863,8]
[394715027,1763911864111,-860.95,0.0003863,8]
[394715028,1763911864123,-500.0,0.0003863,8]
[394715029,1763911864134,-500.0,0.0003863,8]
[394715030,1763911864145,-500.0,0.0003863,8]
[394715031,1763911864155,-500.0,0.0003863,8]
[394715032,1763911864165,-500.0,0.0003863,8]
[394715033,1763911864176,-500.0,0.0003863,8]
[394715034,1763911864185,-500.0,0.0003863,8]
[394715035,1763911864196,-1201.38,0.0003863,8]
[394715036,1763911864206,-506.10845824,0.0003863,8]
[394715037,1763911864217,-626.94509708,0.0003863,8]
[394715038,1763911864227,-884.49,0.0003863,8]
[394715039,1763911864238,-500.0,0.0003863,8]
[394715040,1763911864248,-500.0,0.0003863,2]
[394715041,1763911864259,-500.0,0.0003863,8]
[394715042,1763911864270,-500.0,0.0003863,8]
[394715043,1763911864281,-500.0,0.0003863,8]
[394715044,1763911864291,-500.0,0.0003863,8]
[394715045,1763911864301,-500.0,0.0003863,8]
[394715046,1763911864311,-528.58,0.0003863,8]
[394715047,1763911864321,-500.0,0.0003863,8]
[394715048,1763911864332,-500.0,0.0003863,8]
[394715049,1763911864342,-500.0,0.0003863,8]
[394715050,1763911864352,-500.0,0.0003863,8]
[394715051,1763911864362,-500.0,0.0003863,8]
[394715052,1763911864373,-676.03,0.0003863,8]
[394715053,1763911864384,-500.0,0.0003863,8]
[394715054,1763911864399,-500.0,0.0003863,8]
[394715055,1763911864409,-500.0,0.0003863,8]
[394715056,1763911864420,-500.0,0.0003863,8]
[394715057,1763911864430,-500.0,0.0003863,8]
[394715058,1763911864442,-500.0,0.0003863,8]
[394715059,1763911864452,-500.0,0.0003863,8]
[394715060,1763911864463,-500.0,0.0003863,8]
[394715061,1763911864473,-500.0,0.0003863,8]
[394715062,1763911864485,-500.0,0.0003863,8]
[394715063,1763911864495,-500.0,0.0003863,8]
[394715064,1763911864507,-500.0,0.0003863,8]
[394715065,1763911864518,-500.0,0.0003863,8]
[394715066,1763911864529,-500.0,0.0003863,8]
[394715067,1763911864540,-791.24,0.0003863,8]
[394715068,1763911864555,-500.0,0.0003863,8]
[394715069,1763911864565,-500.0,0.0003863,8]
[394715070,1763911864575,-500.0,0.0003863,8]
[394715071,1763911864586,-500.0,0.0003863,8]
[394715072,1763911864596,-500.0,0.0003863,8]
[394715073,1763911864606,-667.59,0.0003863,8]
[394715074,1763911864616,-500.0,0.0003863,8]
[394715075,1763911864629,-500.0,0.0003863,8]
[394715076,1763911864640,-853.69,0.0003863,8]
[394715077,1763911864651,-592.16,0.0003863,8]
[394715078,1763911864662,-500.0,0.0003863,8]
[394715079,1763911864674,-451.21546273,0.0003863,8]
[394715080,1763911864685,-500.0,0.0003863,8]
[394715081,1763911864696,-1092.54,0.0003863,8]
[394715082,1763911864706,-500.0,0.0003863,8]
[394715083,1763911864717,-500.0,0.0003863,8]
[394715084,1763911864727,-1093.23,0.0003863,8]
[394715085,1763911864740,-500.0,0.0003863,8]
[394715086,1763911864751,-500.0,0.0003863,8]
[394715087,1763911864761,-500.0,0.0003863,8]
[394715088,1763911864773,-518.44,0.0003863,8]
[394715089,1763911864784,-500.0,0.0003863,8]
[394715090,1763911864795,-500.0,0.0003863,8]
[394715091,1763911864806,-500.0,0.0003863,8]
[394715092,1763911864816,-632.1,0.0003863,8]
[394715093,1763911864827,-500.0,0.0003863,8]
[394715094,1763911864838,-500.0,0.0003863,8]
[394715095,1763911864849,-500.0,0.0003863,8]
[394715096,1763911864860,-500.0,0.0003863,8]
[394715097,1763911864870,-988.89,0.0003863,8]
[394715098,1763911864881,-500.0,0.0003863,8]
[394715099,1763911864892,-1340.74,0.0003863,8]
[394715100,1763911864903,-500.0,0.0003863,8]
[394715101,1763911864913,-500.0,0.0003863,8]
[394715102,1763911864924,-643.5,0.0003863,8]
[394715103,1763911864936,-816.67,0.0003863,8]
[394715104,1763911864947,-500.0,0.0003863,8]
[394715105,1763911864957,-500.0,0.0003863,8]
[394715106,1763911864968,-500.0,0.0003863,8]
[394715107,1763911864980,-517.14740848,0.0003863,8]
[394715108,1763911864992,-500.0,0.0003863,8]
[394715109,1763911865003,-500.0,0.0003863,8]
[394715110,1763911865014,-500.0,0.0003863,8]
[394715111,1763911865026,-500.0,0.0003863,8]
[394715112,1763911865036,-500.0,0.0003863,8]
[394715113,1763911865047,-500.0,0.0003863,8]
[394715114,1763911865057,-500.0,0.0003863,8]
[394715115,1763911865068,-527.27,0.0003863,8]
[394715116,1763911865078,-500.0,0.0003863,8]
[394715117,1763911865089,-500.0,0.0003863,8]
[394715118,1763911865100,-534.56,0.0003863,8]
[394715119,1763911865110,-500.0,0.0003863,8]
[394715120,1763911865120,-500.0,0.0003863,8]
[394715121,1763911865131,-500.0,0.0003863,8]
[394715122,1763911865142,-70.61364244,0.0003863,8]
[394715123,1763911865180,-429.38635756,0.0003863,8]
[394715124,1763911865193,-834.54,0.0003863,8]
[394715125,1763911865204,-500.0,0.0003863,8]
[394715126,1763911865216,-500.0,0.0003863,8]
[394715127,1763911865227,-500.0,0.0003863,8]
[394715128,1763911865238,-652.68,0.0003863,8]
[394715129,1763911865250,-500.0,0.0003863,8]
[394715130,1763911865261,-739.68,0.0003863,8]
[394715131,1763911865271,-729.66,0.0003863,8]
[394715132,1763911865283,-500.0,0.0003863,8]
[394715133,1763911865294,-500.0,0.0003863,8]
[394715134,1763911865304,-175.50371994,0.0003863,8]
[394715135,1763911865318,-324.49628006,0.0003863,8]
[394715136,1763911865328,-500.0,0.0003863,8]
[394715137,1763911865339,-500.0,0.0003863,8]
[394715138,1763911865349,-592.1,0.0003863,8]
[394715139,1763911865360,-500.0,0.0003863,8]
[394715140,1763911865370,-500.0,0.0003863,8]
[394715141,1763911865381,-500.0,0.0003863,8]
[394715142,1763911865391,-500.0,0.0003863,8]
[394715143,1763911865402,-500.0,0.0003863,8]
[394715144,1763911865412,-700.0,0.0003863,120]
[394715145,1763911865428,-640.05,0.0003863,8]
[394715146,1763911865440,-504.38,0.0003863,8]
[394715147,1763911865450,-660.89,0.0003863,8]
[394715148,1763911865462,-500.0,0.0003863,8]
[394715149,1763911865473,-500.0,0.0003863,8]
[394715150,1763911865484,-580.68371994,0.0003863,8]
[394715151,1763911865499,-82.43628006,0.0003863,8]
[394715152,1763911865509,-500.0,0.0003863,8]
[394715153,1763911865520,-500.0,0.0003863,8]
[394715154,1763911865531,-500.0,0.0003863,8]
[394715155,1763911865544,-500.0,0.0003863,8]
[394715156,1763911865556,-500.0,0.0003863,8]
[394715157,1763911865567,-500.0,0.0003863,8]
[394715158,1763911865578,-500.0,0.0003863,8]
[394715159,1763911865590,-500.0,0.0003863,8]
[394715160,1763911865601,-500.0,0.0003863,7]
[394715161,1763911865612,-500.0,0.0003863,8]
[394715162,1763911865625,-1066.19,0.0003863,8]
[394715163,1763911865636,-500.0,0.0003863,8]
[394715164,1763911865648,-500.0,0.0003863,8]
[394715165,1763911865660,-535.31898547,0.0003863,8]
[394715166,1763911865671,-500.0,0.0003863,8]
[394715167,1763911865682,-500.0,0.0003863,8]
[394715168,1763911865693,-416.496515,0.0003863,8]
[394715169,1763911865704,-500.0,0.0003863,8]
[394715170,1763911865714,-500.0,0.0003863,8]
[394715171,1763911865724,-500.0,0.0003863,8]
[394715172,1763911865734,-953.63,0.0003863,8]
[394715173,1763911865743,-500.0,0.0003863,8]
[394715174,1763911865753,-1599.11,0.0003863,8]
[394715175,1763911865763,-200.85570494,0.0003863,8]
[394715176,1763911865773,-1000.0,0.0003863,120]
[394715177,1763911865783,-716.95,0.0003863,8]
[394715178,1763911865793,-500.0,0.0003863,8]
[394715179,1763911865803,-500.0,0.0003863,8]
[394715180,1763911865813,-500.0,0.0003863,8]
[394715181,1763911865823,-500.0,0.0003863,8]
[394715182,1763911865834,-500.0,0.0003863,8]
[394715183,1763911865844,-500.0,0.0003863,8]
[394715184,1763911865855,-830.12,0.0003863,8]
[394715185,1763911865866,-500.0,0.0003863,8]
[394715186,1763911865876,-728.52,0.0003863,8]
[394715187,1763911865887,-500.0,0.0003863,8]
[394715188,1763911865899,-500.0,0.0003863,8]
[394715189,1763911865909,-506.0205703,0.0003863,8]
[394715190,1763911865920,-500.0,0.0003863,8]
[394715191,1763911865931,-500.0,0.0003863,8]
[394715192,1763911865943,-609.35,0.0003863,8]
[394715193,1763911865954,-1130.12,0.0003863,8]
[394715194,1763911865966,-500.0,0.0003863,8]
[394715195,1763911865977,-621.59,0.0003863,8]
[394715196,1763911865988,-500.0,0.0003863,8]
[394715197,1763911865999,-500.0,0.0003863,8]
[394715198,1763911866014,-500.0,0.0003863,8]
[394715199,1763911866026,-500.0,0.0003863,8]
[394715200,1763911866039,-500.0,0.0003863,8]
[394715201,1763911866051,-500.0,0.0003863,8]
[394715202,1763911866063,-1058.15,0.0003863,8]
[394715203,1763911866076,-280.49,0.0003863,8]
[394715204,1763911866088,-76.76373853,0.0003863,8]
[394715206,1763911881637,500.0,0.00014824,2]
[394715211,1763911916288,9500.01,0.00015744,2]
[394715212,1763911916319,10000.01,0.00015744,2]
[394715213,1763911916349,10000.01,0.00015744,2]
[394715214,1763911916378,10000.01,0.00015744,2]
[394715215,1763911916408,10000.01,0.00015744,2]
[394715216,1763911916439,10000.01,0.00015744,2]
[394715219,1763911927866,-300.0,0.00015743,2]
[394715220,1763911928038,-9400.01,0.00015744,2]
[394715222,1763911930627,-10000.01,0.00015744,2]
[394715223,1763911930834,-10000.01,0.00015744,2]
[394715224,1763911931003,-10000.01,0.00015744,2]
[394715225,1763911931180,-10000.01,0.00015744,2]
[394715226,1763911931297,-10000.01,0.00015744,2]
[394715227,1763911933516,-10000.01,0.00015744,2]
[394715228,1763911933642,-10000.01,0.00015744,2]
[394715238,1763911948662,-10000.01,0.00015744,2]
[394715240,1763911954761,-10000.01,0.00015744,2]
[394715241,1763911957690,-10000.01,0.00015744,2]
[394715242,1763911960731,-10000.01,0.00015744,2]
[394715256,1763912060644,2886.84,0.00014725,2]
[394715264,1763912204077,223.37,0.00022,30]
[394715268,1763912590881,1367.39,0.0001473,2]
[394715269,1763912891579,970.61,0.00013699,2]
[394715295,1763913032269,-250.0,0.00014939,2]
[394715296,1763913032341,-7450.87687789,0.00014939,2]
[394715297,1763913032356,-1130.74911611,0.00014939,2]
[394715298,1763913032369,-195.0,0.00015014,2]
[394715299,1763913032381,-697.39361678,0.00015015,2]
[394715728,1763913038361,-632.7855693,0.00015015,2]
[394715729,1763913038370,-300.0,0.00015033,2]
[394715730,1763913038379,-250.0,0.00015034,2]
[394715731,1763913038390,-416.63549648,0.00015034,2]
[394715732,1763913038399,-1200.0,0.00015087,2]
[394715733,1763913038418,-300.0,0.00015087,2]
[394715734,1763913038430,-300.0,0.00015087,2]
[394715735,1763913038441,-5550.37,0.00015088,2]
[394715736,1763913038451,-195.0,0.00015102,2]
[394715737,1763913038462,-250.0,0.00015165,2]
[394715738,1763913038473,-200.0,0.0001534,2]
[394715739,1763913038483,-274.35,0.0001541,2]
[394715740,1763913038494,-300.0,0.00015484,2]
[394715741,1763913038504,-2984.222,0.00015485,2]
[394715742,1763913038516,-242.959,0.00015485,2]
[394715743,1763913038527,-703.77,0.00015485,2]
[394715744,1763913038538,-509.97,0.00015485,2]
[394715745,1763913038549,-9999.99,0.00015485,2]
[394715746,1763913038560,-150.99,0.00015485,2]
[394715747,1763913038572,-30006.67,0.00015486,2]
[394715748,1763913038583,-500.0,0.00015642,2]
[394715749,1763913038594,-276.76597298,0.00015642,2]
[394715750,1763913038606,-490.72273196,0.00015642,2]
[394715751,1763913038616,-500.0,0.00015642,2]
[394715752,1763913038626,-349.96850055,0.00015642,2]
[394715753,1763913038637,-500.0,0.00015642,2]
[394715754,1763913038647,-500.0,0.00015642,2]
[394715755,1763913038657,-500.0,0.00015642,2]
[394715756,1763913038666,-500.0,0.00015642,2]
[394715757,1763913038677,-500.0,0.00015642,2]
[394715758,1763913038686,-500.0,0.00015642,2]
[394715759,1763913038696,-500.0,0.00015642,2]
[394715760,1763913038706,-309.70158076,0.00015642,2]
[394715761,1763913038717,-500.0,0.00015642,2]
[394715762,1763913038727,-500.0,0.00015642,2]
[394715763,1763913038737,-209.11375923,0.00015642,2]
[394715764,1763913038747,-500.0,0.00015642,2]
[394715765,1763913038757,-500.0,0.00015642,2]
[394715766,1763913038772,-500.0,0.00015642,2]
[394715767,1763913038782,-500.0,0.00015642,2]
[394715768,1763913038793,-500.0,0.00015642,2]
[394715769,1763913038803,-500.0,0.00015642,2]
[394715770,1763913038813,-500.0,0.00015642,2]
[394715771,1763913038823,-500.0,0.00015642,2]
[394715772,1763913038840,-500.0,0.00015642,2]
[394715773,1763913038851,-500.0,0.00015642,2]
[394715774,1763913038861,-500.0,0.00015642,2]
[394715775,1763913038871,-500.0,0.00015642,2]
[394715776,1763913038881,-500.0,0.00015642,2]
[394715777,1763913038891,-500.0,0.00015642,2]
[394715778,1763913038902,-500.0,0.00015642,2]
[394715779,1763913038913,-500.0,0.00015642,2]
[394715780,1763913038924,-500.0,0.00015642,2]
[394715781,1763913038938,-500.0,0.00015642,2]
[394715782,1763913038947,-500.0,0.00015642,2]
[394715783,1763913038957,-500.0,0.00015642,2]
[394715784,1763913038968,-500.0,0.00015642,2]
[394715785,1763913038979,-500.0,0.00015642,2]
[394715786,1763913038989,-500.0,0.00015642,2]
[394715787,1763913039000,-500.0,0.00015642,2]
[394715788,1763913039010,-3870.069,0.00015643,2]
[394715789,1763913039022,-364814.26654347,0.00015643,2]
[394715912,1763913040415,-395185.73345653,0.00015643,2]
[394715914,1763913040428,-4238.0812,0.00015643,2]
[394715916,1763913040438,-500.0,0.00015644,2]
[394715919,1763913040448,-2500.0,0.00015644,2]
[394715921,1763913040458,-337.60917807,0.00015673,2]
[394715923,1763913040469,-1514.450497,0.00015673,2]
[394715925,1763913040479,-2380.26894131,0.00015673,2]
[394715927,1763913040489,-159.64647078,0.00015673,2]
[394715929,1763913040499,-500.67542342,0.00015743,2]
[394715931,1763913040509,-500.0,0.00015743,2]
[394715933,1763913040519,-500.0,0.00015743,2]
[394715935,1763913040531,-500.0,0.00015743,2]
[394715937,1763913040540,-727.33,0.00015743,2]
[394715939,1763913040550,-727.33,0.00015743,2]
[394715973,1763913040871,-500.0,0.00015743,2]
[394715976,1763913040880,-500.0,0.00015743,2]
[394715978,1763913040890,-500.0,0.00015743,2]
[394715980,1763913040900,-500.0,0.00015743,2]
[394715982,1763913040910,-500.0,0.00015743,2]
[394715984,1763913040921,-500.0,0.00015743,2]
[394715986,1763913040934,-500.0,0.00015743,2]
[394715989,1763913040943,-943.77,0.00015743,2]
[394715990,1763913040953,-830.0,0.00015744,2]
[394715993,1763913040963,-500.0,0.00015773,2]
[394715994,1763913040973,-500.0,0.00015773,2]
[394715997,1763913040983,-500.0,0.00015773,2]
[394715999,1763913040993,-528.93568053,0.00015924,2]
[394716001,1763913041005,-528.93568054,0.00015924,2]
[394716002,1763913041015,-943.77,0.00016017,2]
[394716005,1763913041024,-943.77,0.00016291,2]
[394716006,1763913041034,-1000.0,0.00016321,2]
[394716008,1763913041044,-511.32267311,0.00016321,2]
[394716011,1763913041054,-250.0,0.00016432,2]
[394716013,1763913041063,-500.0,0.00016438,2]
[394716015,1763913041073,-500.0,0.00016438,2]
[394716017,1763913041083,-500.0,0.00016438,2]
[394716019,1763913041093,-500.0,0.00016438,2]
[394716021,1763913041103,-500.0,0.00016438,2]
[394716023,1763913041112,-500.0,0.00016438,2]
[394716025,1763913041122,-500.0,0.00016438,2]
[394716027,1763913041131,-194.88672452,0.00016438,2]
[394716029,1763913041141,-500.0,0.00016438,2]
[394716031,1763913041151,-500.0,0.00016438,2]
[394716033,1763913041161,-500.0,0.00016438,2]
[394716035,1763913041170,-250.0,0.00016495,2]
[394716037,1763913041181,-300.0,0.00016495,2]
[394716039,1763913041192,-300.0,0.00016495,2]
[394716040,1763913041202,-300.0,0.00016495,2]
[394716042,1763913041212,-195.0,0.00016495,2]
[394716044,1763913041222,-300.0,0.00016495,2]
[394716046,1763913041232,-300.0,0.00016495,2]
[394716048,1763913041241,-300.0,0.00016495,2]
[394716049,1763913041250,-420.0,0.00016511,2]
[394716051,1763913041260,-943.77,0.00016565,2]
[394716053,1763913041269,-1680.0,0.00016595,2]
[394716055,1763913041279,-255.0,0.00016614,2]
[394716057,1763913041288,-943.77,0.00016839,2]
[394716059,1763913041297,-503.97501488,0.00016868,2]
[394716061,1763913041306,-500.0,0.00016997,2]
[394716063,1763913041316,-500.0,0.00016997,2]
[394716065,1763913041325,-500.0,0.00016999,2]
[394716067,1763913041334,-283.06668924,0.00016999,2]
[394716069,1763913041344,-943.77,0.00017113,2]
[394716071,1763913041354,-274.35,0.00017337,2]
[394716073,1763913041363,-1000.0,0.00017345,2]
[394716075,1763913041373,-943.77,0.00017387,2]
[394716077,1763913041382,-943.77,0.00017661,2]
[394716079,1763913041392,-943.77,0.00017935,2]
[394716081,1763913041401,-943.77,0.00018209,2]
[394716083,1763913041412,-426.78462315,0.00018224,2]
[394716085,1763913041421,-1514.45049693,0.00018254,2]
[394716087,1763913041430,-2380.26894128,0.00018254,2]
[394716089,1763913041439,-500.0,0.00018275,2]
[394716091,1763913041450,-500.0,0.00018275,2]
[394716093,1763913041460,-500.0,0.00018275,2]
[394716095,1763913041472,-500.0,0.00018275,2]
[394716097,1763913041481,-500.0,0.00018275,2]
[394716099,1763913041491,-943.77,0.00018483,2]
[394716101,1763913041500,-943.79,0.00018757,2]
[394716103,1763913041510,-980.0902075,0.00018823,2]
[394716105,1763913041520,-502.43033754,0.00018823,2]
[394716107,1763913041530,-500.0,0.00018823,2]
[394716109,1763913041539,-230.27415955,0.00018823,2]
[394716111,1763913041548,-1000.0,0.00018823,2]
[394716113,1763913041562,-31464.00448035,0.00019,2]
[394716115,1763913041571,-500.0,0.00019167,2]
[394716117,1763913041580,-500.0,0.00019167,2]
[394716119,1763913041590,-337.60917806,0.00019251,2]
[394716121,1763913041599,-5770.06,0.00019258,2]
[394716123,1763913041608,-51764.9519346,0.0001926,2]
[394716125,1763913041618,-274.35,0.00019263,2]
[394716127,1763913041627,-159.64647073,0.00019277,2]
[394716129,1763913041637,-1500.0,0.00019371,2]
[394716131,1763913041646,-500.0,0.00019715,2]
[394716133,1763913041655,-743.41019831,0.00019919,2]
[394716135,1763913041665,-970.61,0.00020187,2]
[394716137,1763913041674,-288.31615146,0.00020512,2]
[394716139,1763913041683,-1514.45049693,0.00020835,2]
[394716140,1763913041693,-2380.26894128,0.00020835,2]
[394716142,1763913041702,-274.35,0.00021189,2]
[394716144,1763913041712,-11550.3220152,0.00021711,2]
[394716146,1763913041721,-168.0,0.00021849,2]
[394716148,1763913041731,-168.0,0.00021864,2]
[394716150,1763913041740,-168.0,0.00021898,2]
[394716151,1763913041750,-168.0,0.00021966,2]
[394716152,1763913041759,-168.0,0.00022179,2]
[394716153,1763913041768,-168.0,0.00022207,2]
[394716154,1763913041778,-2577.225201,0.00022258,2]
[394716155,1763913041787,-168.0,0.00022385,2]
[394716156,1763913041796,-168.0,0.00022389,2]
[394716157,1763913041806,-168.0,0.00022398,2]
[394716158,1763913041816,-168.0,0.00022487,2]
[394716159,1763913041825,-168.0,0.00022535,2]
[394716160,1763913041835,-168.0,0.00022564,2]
[394716161,1763913041845,-168.0,0.00022793,2]
[394716162,1763913041854,-337.60917806,0.0002283,2]
[394716163,1763913041864,-159.64647073,0.00022881,2]
[394716164,1763913041874,-168.0,0.00022886,2]
[394716165,1763913041883,-168.0,0.00022905,2]
[394716166,1763913041892,-168.0,0.0002294,2]
[394716168,1763913041902,-168.0,0.00023039,2]
[394716170,1763913041911,-274.35,0.00023116,2]
[394716172,1763913041921,-168.0,0.00023183,2]
[394716174,1763913041936,-168.0,0.00023193,2]
[394716176,1763913041945,-1514.45049693,0.00023415,2]
[394716178,1763913041955,-2380.26894128,0.00023415,2]
[394716180,1763913041964,-168.0,0.00023551,2]
[394716182,1763913041976,-168.0,0.00023583,2]
[394716184,1763913041986,-168.0,0.00023642,2]
[394716186,1763913041996,-168.0,0.00023737,2]
[394716188,1763913042006,-168.0,0.00023837,2]
[394716190,1763913042017,-727.33,0.00025821,2]
[394716192,1763913042027,-500.0,0.00025878,2]
[394716195,1763913042037,-500.0,0.00025878,2]
[394716197,1763913042047,-214.10440233,0.00025879,2]
[394716198,1763913042056,-500.0,0.00025888,2]
[394716200,1763913042066,-500.0,0.00025888,2]
[394716202,1763913042075,-223587.22,0.00025889,2]
[394716204,1763913042086,-168.51329713,0.00025975,2]
[394716206,1763913042096,-1514.45049693,0.00025996,2]
[394716209,1763913042106,-2380.26894128,0.00025996,2]
[394716211,1763913042115,-337.60917806,0.00026408,2]
[394716213,1763913042125,-159.64647073,0.00026485,2]
[394716215,1763913042135,-970.61,0.00026676,2]
[394716217,1763913042145,-5770.06,0.00026961,2]
[394716219,1763913042155,-500.0,0.00027397,2]
[394716221,1763913042164,-500.0,0.00027397,2]
[394716223,1763913042174,-500.0,0.00027397,2]
[394716225,1763913042184,-500.0,0.00027397,2]
[394716227,1763913042194,-500.0,0.00027397,2]
[394716229,1763913042203,-160.04,0.000274,7]
[394716230,1763913042213,-586.339,0.00027979,2]
[394716232,1763913042223,-3436.0,0.00027979,2]
[394716234,1763913042233,-288.807,0.00027979,2]
[394716236,1763913042243,-301.72,0.00027979,2]
[394716238,1763913042252,-6542.037,0.00027979,2]
[394716240,1763913042262,-561.0,0.00027979,2]
[394716242,1763913042272,-1514.45049693,0.00028577,2]
[394716244,1763913042283,-2380.26894128,0.00028577,2]
[394716246,1763913042292,-727.33,0.00028811,2]
[394716248,1763913042302,-337.60917806,0.00029986,2]
[394716250,1763913042311,-159.64647073,0.00030088,15]
[394716252,1763913042320,-576.0,0.00030979,2]
[394716254,1763913042330,-3436.0,0.00030979,2]
[394716256,1763913042339,-252.0,0.00030979,2]
[394716258,1763913042349,-6497.0,0.00030979,2]
[394716260,1763913042358,-561.0,0.00030979,2]
[394716262,1763913042369,-1514.45049693,0.00031158,2]
[394716264,1763913042378,-2380.26894128,0.00031158,2]
[394716266,1763913042387,-191.16,0.00031507,120]
[394716268,1763913042398,-244.28,0.00031714,2]
[394716270,1763913042407,-970.61,0.00033165,2]
[394716272,1763913042417,-337.60917806,0.00033564,2]
[394716274,1763913042427,-159.64647073,0.00033692,15]
[394716276,1763913042436,-1514.45049693,0.00033738,2]
[394716278,1763913042446,-2380.26894128,0.00033738,2]
[394716280,1763913042455,-252.0,0.00033979,2]
[394716282,1763913042465,-151.0,0.000349,120]
[394716284,1763913042475,-160.04,0.000349,30]
[394716286,1763913042484,-1514.45049693,0.00036319,2]
[394716288,1763913042493,-2380.26894128,0.00036319,2]
[394716290,1763913042502,-252.0,0.00036979,2]
[394716291,1763913042512,-1402.1,0.00036986,2]
[394716294,1763913042522,-337.60917806,0.00037143,2]
[394716296,1763913042532,-159.64647073,0.00037296,15]
[394716298,1763913042541,-884.87,0.00037589,5]
[394716299,1763913042551,-1106.62388718,0.00037589,20]
[394716301,1763913042561,-545.21896962,0.00037589,20]
[394716304,1763913042571,-500.0,0.00037605,2]
[394716306,1763913042580,-150.0,0.00037671,2]
[394716308,1763913042591,-150.0,0.00037671,2]
[394716310,1763913042599,-169.71,0.00037671,2]
[394716311,1763913042610,-151.04,0.00037671,2]
[394716313,1763913042622,-150.0,0.00037671,2]
[394716316,1763913042631,-834.5,0.00037671,2]
[394716317,1763913042640,-1100.7,0.00037671,2]
[394716319,1763913042650,-150.0,0.00037671,2]
[394716321,1763913042659,-150.0,0.00037671,2]
[394716323,1763913042668,-150.0,0.00037671,2]
[394716325,1763913042678,-150.0,0.00037671,2]
[394716327,1763913042687,-169.71,0.00037671,2]
[394716329,1763913042697,-150.0,0.00037671,2]
[394716331,1763913042706,-150.0,0.00037671,2]
[394716333,1763913042715,-169.71,0.00037671,2]